[Event "Early-Titled-Tuesday-Blitz-March-05-2024"]
[Site "Chess.com"]
[Date "2024.03.05"]
[Round "1"]
[White "Oleksandr_Bortnyk"]
[Black "AA95"]
[Result "1-0"]
[WhiteElo "2968"]
[BlackElo "2509"]
[TimeControl "180+1"]
[EndTime "8:06:19 PST"]
[Termination "Oleksandr_Bortnyk won on time"]

1. e4 {[%clk 0:03:00.9]} 1... c5 {[%clk 0:02:58.8]} 2. c3 {[%clk 0:03:00.5]}
2... d5 {[%clk 0:02:58.1]} 3. exd5 {[%clk 0:03:01.4]} 3... Qxd5 {[%clk
0:02:58.6]} 4. d4 {[%clk 0:03:01.4]} 4... Nf6 {[%clk 0:02:58]} 5. Be3 {[%clk
0:03:01.1]} 5... cxd4 {[%clk 0:02:54.8]} 6. cxd4 {[%clk 0:03:02]} 6... e6 {[%clk
0:02:54.4]} 7. Nc3 {[%clk 0:03:02.5]} 7... Bb4 {[%clk 0:02:54.1]} 8. Nf3 {[%clk
0:03:02.9]} 8... Nc6 {[%clk 0:02:53.3]} 9. Bd3 {[%clk 0:03:02.9]} 9... O-O
{[%clk 0:02:52.3]} 10. O-O {[%clk 0:03:02.9]} 10... Bxc3 {[%clk 0:02:52.7]} 11.
bxc3 {[%clk 0:03:03.8]} 11... b6 {[%clk 0:02:17.3]} 12. c4 {[%clk 0:03:04]}
12... Qd6 {[%clk 0:02:14]} 13. h3 {[%clk 0:02:45.5]} 13... Bb7 {[%clk
0:02:10.6]} 14. Rb1 {[%clk 0:02:42.7]} 14... Rfd8 {[%clk 0:01:16.9]} 15. Qa4
{[%clk 0:02:31.2]} 15... Qc7 {[%clk 0:00:58.8]} 16. Rfc1 {[%clk 0:02:27.7]}
16... e5 {[%clk 0:00:41]} 17. dxe5 {[%clk 0:01:49.4]} 17... Nxe5 {[%clk
0:00:41]} 18. Nxe5 {[%clk 0:01:49.5]} 18... Qxe5 {[%clk 0:00:41.1]} 19. Bf1
{[%clk 0:01:48.6]} 19... Ne4 {[%clk 0:00:25.1]} 20. c5 {[%clk 0:01:45.4]} 20...
Nc3 {[%clk 0:00:19.5]} 21. Rxc3 {[%clk 0:01:33.5]} 21... Qxc3 {[%clk 0:00:20.4]}
22. Rc1 {[%clk 0:01:34.4]} 22... Qa5 {[%clk 0:00:13.4]} 23. Qxa5 {[%clk
0:01:33.6]} 23... bxa5 {[%clk 0:00:14.3]} 24. c6 {[%clk 0:01:34.5]} 24... Bc8
{[%clk 0:00:13.2]} 25. a4 {[%clk 0:01:32.7]} 25... Re8 {[%clk 0:00:07.2]} 26.
Rc5 {[%clk 0:01:30.5]} 26... a6 {[%clk 0:00:06.7]} 27. Rxa5 {[%clk 0:01:29.8]}
27... Re6 {[%clk 0:00:07.1]} 28. Rc5 {[%clk 0:01:28.9]} 28... Rb8 {[%clk
0:00:05.9]} 29. Bc4 {[%clk 0:01:28.2]} 29... Rf6 {[%clk 0:00:05.5]} 30. c7
{[%clk 0:01:26]} 30... Rb4 {[%clk 0:00:05]} 31. Rd5 {[%clk 0:01:23.7]} 31... g5
{[%clk 0:00:03.1]} 32. Rd8+ {[%clk 0:01:24.6]} 32... Kg7 {[%clk 0:00:03.1]} 33.
Bd5 {[%clk 0:01:05.8]} 33... Rb1+ {[%clk 0:00:01.9]} 34. Kh2 {[%clk 0:01:06.1]}
1-0

[Event "Early-Titled-Tuesday-Blitz-March-05-2024"]
[Site "Chess.com"]
[Date "2024.03.05"]
[Round "1"]
[White "klercaku"]
[Black "PolandHussars"]
[Result "0-1"]
[WhiteElo "2181"]
[BlackElo "2562"]
[TimeControl "180+1"]
[EndTime "8:06:19 PST"]
[Termination "PolandHussars won on time"]

1. e4 {[%clk 0:03:00.9]} 1... e5 {[%clk 0:02:59.5]} 2. Nf3 {[%clk 0:03:00.6]}
2... Nc6 {[%clk 0:02:59.4]} 3. d4 {[%clk 0:03:00.3]} 3... exd4 {[%clk
0:02:59.2]} 4. Nxd4 {[%clk 0:03:00.3]} 4... Bc5 {[%clk 0:02:57.3]} 5. Be3 {[%clk
0:02:59.1]} 5... Qf6 {[%clk 0:02:56.8]} 6. c3 {[%clk 0:02:58.7]} 6... b6 {[%clk
0:02:53.4]} 7. Be2 {[%clk 0:02:55]} 7... Bb7 {[%clk 0:02:53.1]} 8. O-O {[%clk
0:02:54.6]} 8... Nge7 {[%clk 0:02:52.1]} 9. Nb5 {[%clk 0:02:34]} 9... O-O-O
{[%clk 0:02:50.6]} 10. Bxc5 {[%clk 0:02:31.7]} 10... bxc5 {[%clk 0:02:51.5]} 11.
Nd2 {[%clk 0:02:20.1]} 11... d5 {[%clk 0:02:46]} 12. Qc2 {[%clk 0:02:07.6]}
12... Qg6 {[%clk 0:02:38.7]} 13. Bf3 {[%clk 0:01:32.9]} 13... a6 {[%clk
0:02:36.4]} 14. Na3 {[%clk 0:01:29]} 14... Ne5 {[%clk 0:02:35.8]} 15. exd5
{[%clk 0:01:24.6]} 15... Nxf3+ {[%clk 0:02:35.8]} 16. Nxf3 {[%clk 0:01:23.4]}
16... Nxd5 {[%clk 0:02:30.5]} 17. Qxg6 {[%clk 0:01:19.4]} 17... hxg6 {[%clk
0:02:31.4]} 18. Nc4 {[%clk 0:01:14.6]} 18... Nf4 {[%clk 0:02:30.3]} 19. Rfe1
{[%clk 0:01:08.9]} 19... f6 {[%clk 0:02:15.3]} 20. Re7 {[%clk 0:00:53.6]} 20...
Rd7 {[%clk 0:02:15]} 21. Rxd7 {[%clk 0:00:50.8]} 21... Kxd7 {[%clk 0:02:15.9]}
22. Rd1+ {[%clk 0:00:40]} 22... Ke7 {[%clk 0:02:14.4]} 23. Na5 {[%clk
0:00:36.1]} 23... Ba8 {[%clk 0:02:03.3]} 24. Ne1 {[%clk 0:00:30.1]} 24... Rb8
{[%clk 0:01:57]} 25. Rd2 {[%clk 0:00:20.3]} 25... g5 {[%clk 0:01:55]} 26. g3
{[%clk 0:00:20]} 26... Ne6 {[%clk 0:01:51.6]} 27. Nc4 {[%clk 0:00:10.8]} 27...
g6 {[%clk 0:01:41.8]} 28. Ne3 {[%clk 0:00:07.7]} 28... f5 {[%clk 0:01:39.2]} 29.
Nc4 {[%clk 0:00:04.2]} 29... g4 {[%clk 0:01:36.1]} 30. Ne5 {[%clk 0:00:02.9]}
30... Rg8 {[%clk 0:01:34.1]} 31. N5d3 {[%clk 0:00:01.7]} 31... Ng5 {[%clk
0:01:32.5]} 32. Nf4 {[%clk 0:00:01.5]} 32... Kf6 {[%clk 0:01:30.5]} 33. Re2
{[%clk 0:00:02.1]} 33... Rd8 {[%clk 0:01:29.8]} 34. Neg2 {[%clk 0:00:01.4]}
34... Rd1+ {[%clk 0:01:26.6]} 35. Re1 {[%clk 0:00:01.8]} 35... Nf3+ {[%clk
0:01:26.5]} 36. Kf1 {[%clk 0:00:01.5]} 36... Nxe1 {[%clk 0:01:24.4]} 37. Ke2
{[%clk 0:00:01.3]} 37... Nxg2 {[%clk 0:01:23.2]} 0-1

[Event "Early-Titled-Tuesday-Blitz-March-05-2024"]
[Site "Chess.com"]
[Date "2024.03.05"]
[Round "1"]
[White "LuisFSiles"]
[Black "xasid81"]
[Result "0-1"]
[WhiteElo "2250"]
[BlackElo "2586"]
[TimeControl "180+1"]
[EndTime "8:06:21 PST"]
[Termination "xasid81 won by resignation"]

1. e4 {[%clk 0:02:59.7]} 1... c6 {[%clk 0:02:58]} 2. d4 {[%clk 0:02:59.2]} 2...
d6 {[%clk 0:02:58.3]} 3. Nc3 {[%clk 0:02:57.1]} 3... Nf6 {[%clk 0:02:58.8]} 4.
f4 {[%clk 0:02:57.1]} 4... Qa5 {[%clk 0:02:57.6]} 5. e5 {[%clk 0:02:51.6]} 5...
dxe5 {[%clk 0:02:54.3]} 6. dxe5 {[%clk 0:02:40.1]} 6... Ne4 {[%clk 0:02:51.5]}
7. Bd2 {[%clk 0:02:29.5]} 7... Nxd2 {[%clk 0:02:50]} 8. Qxd2 {[%clk 0:02:30.4]}
8... Bf5 {[%clk 0:02:46.6]} 9. Bd3 {[%clk 0:02:24.8]} 9... Bxd3 {[%clk
0:02:44.5]} 10. Qxd3 {[%clk 0:02:21.2]} 10... Na6 {[%clk 0:02:40.5]} 11. O-O-O
{[%clk 0:02:17.4]} 11... Rd8 {[%clk 0:02:38.7]} 12. Qxd8+ {[%clk 0:02:17.4]}
12... Qxd8 {[%clk 0:02:39.6]} 13. Rxd8+ {[%clk 0:02:17.4]} 13... Kxd8 {[%clk
0:02:40.5]} 14. Nf3 {[%clk 0:02:15.8]} 14... e6 {[%clk 0:02:39.7]} 15. Rd1+
{[%clk 0:02:07.1]} 15... Ke8 {[%clk 0:02:39]} 16. Ne4 {[%clk 0:02:01.7]} 16...
Nc5 {[%clk 0:02:37.5]} 17. Nd6+ {[%clk 0:01:43.1]} 17... Bxd6 {[%clk 0:02:35.3]}
18. Rxd6 {[%clk 0:01:44]} 18... Ke7 {[%clk 0:02:32.3]} 19. b4 {[%clk 0:01:40.6]}
19... Nd7 {[%clk 0:02:31.4]} 20. Rd3 {[%clk 0:01:23.6]} 20... Nb6 {[%clk
0:02:28.8]} 21. Nd2 {[%clk 0:01:23.5]} 21... Nd5 {[%clk 0:02:28.4]} 22. g3
{[%clk 0:01:16.6]} 22... b6 {[%clk 0:02:14.6]} 23. a3 {[%clk 0:01:16.1]} 23...
h5 {[%clk 0:02:13.6]} 24. c4 {[%clk 0:01:14.4]} 24... Nc7 {[%clk 0:02:13.5]} 25.
h4 {[%clk 0:01:09.5]} 25... b5 {[%clk 0:02:09.5]} 26. Rd6 {[%clk 0:00:58.5]}
26... bxc4 {[%clk 0:02:03.7]} 27. Rxc6 {[%clk 0:00:57.8]} 27... Nb5 {[%clk
0:02:00.4]} 28. Nxc4 {[%clk 0:00:53.5]} 28... Kd7 {[%clk 0:01:58]} 29. Rc5
{[%clk 0:00:49.4]} 29... Nd4 {[%clk 0:01:56]} 30. Kb2 {[%clk 0:00:48.6]} 30...
Nf5 {[%clk 0:01:50.2]} 31. Ra5 {[%clk 0:00:47.6]} 31... Nxg3 {[%clk 0:01:45.6]}
32. Rxa7+ {[%clk 0:00:47.7]} 32... Kc6 {[%clk 0:01:46.4]} 33. Rxf7 {[%clk
0:00:40]} 33... Nf5 {[%clk 0:01:46.5]} 34. a4 {[%clk 0:00:35.9]} 34... Nxh4
{[%clk 0:01:45.3]} 35. Rxg7 {[%clk 0:00:34.1]} 35... Nf5 {[%clk 0:01:45]} 36.
Ra7 {[%clk 0:00:29]} 36... h4 {[%clk 0:01:40.9]} 37. b5+ {[%clk 0:00:21.5]}
37... Kd5 {[%clk 0:01:39.3]} 38. Nd2 {[%clk 0:00:20]} 38... h3 {[%clk
0:01:35.5]} 39. Nf3 {[%clk 0:00:17.6]} 39... Ke4 {[%clk 0:01:35.5]} 40. Ng5+
{[%clk 0:00:16.6]} 40... Kxf4 {[%clk 0:01:35.2]} 41. Nxh3+ {[%clk 0:00:16.8]}
41... Rxh3 {[%clk 0:01:34.5]} 42. b6 {[%clk 0:00:17.7]} 42... Nd4 {[%clk
0:01:32.5]} 43. Rc7 {[%clk 0:00:14.5]} 43... Rb3+ {[%clk 0:01:31.1]} 44. Ka2
{[%clk 0:00:11.9]} 44... Rxb6 {[%clk 0:01:32]} 45. a5 {[%clk 0:00:11.8]} 45...
Rb5 {[%clk 0:01:31.5]} 46. Ra7 {[%clk 0:00:10.2]} 46... Nc6 {[%clk 0:01:29.7]}
47. Rf7+ {[%clk 0:00:06.9]} 0-1

[Event "Early-Titled-Tuesday-Blitz-March-05-2024"]
[Site "Chess.com"]
[Date "2024.03.05"]
[Round "1"]
[White "Real_taiatai"]
[Black "Njal28"]
[Result "0-1"]
[WhiteElo "2515"]
[BlackElo "3035"]
[TimeControl "180+1"]
[EndTime "8:06:27 PST"]
[Termination "Njal28 won by checkmate"]

1. e4 {[%clk 0:02:57.9]} 1... e5 {[%clk 0:02:59.8]} 2. Nf3 {[%clk 0:02:56.4]}
2... Nc6 {[%clk 0:03:00.1]} 3. Bc4 {[%clk 0:02:56.8]} 3... Bc5 {[%clk
0:02:59.5]} 4. c3 {[%clk 0:02:56.9]} 4... Nf6 {[%clk 0:02:59.7]} 5. d3 {[%clk
0:02:57.2]} 5... d6 {[%clk 0:02:59.4]} 6. b4 {[%clk 0:02:57.6]} 6... Bb6 {[%clk
0:02:59.6]} 7. a4 {[%clk 0:02:58.1]} 7... a5 {[%clk 0:02:59.6]} 8. b5 {[%clk
0:02:58.7]} 8... Ne7 {[%clk 0:03:00]} 9. Nbd2 {[%clk 0:02:59]} 9... Ng6 {[%clk
0:03:00.4]} 10. O-O {[%clk 0:02:58.7]} 10... O-O {[%clk 0:02:59.5]} 11. d4
{[%clk 0:02:59.1]} 11... h6 {[%clk 0:02:47.1]} 12. Re1 {[%clk 0:02:53.1]} 12...
Re8 {[%clk 0:02:41.5]} 13. Qb3 {[%clk 0:02:23.3]} 13... Be6 {[%clk 0:02:16.7]}
14. Bxe6 {[%clk 0:02:22.7]} 14... Rxe6 {[%clk 0:02:17.6]} 15. d5 {[%clk
0:02:07.9]} 15... Re8 {[%clk 0:02:14.3]} 16. Nc4 {[%clk 0:02:08.4]} 16... Bc5
{[%clk 0:02:12.7]} 17. Qc2 {[%clk 0:01:59.5]} 17... Ng4 {[%clk 0:02:08.3]} 18.
Ne3 {[%clk 0:01:58]} 18... Nxe3 {[%clk 0:02:01.6]} 19. Bxe3 {[%clk 0:01:58.9]}
19... Bxe3 {[%clk 0:02:00.7]} 20. Rxe3 {[%clk 0:01:59.8]} 20... b6 {[%clk
0:01:56.5]} 21. g3 {[%clk 0:01:58.3]} 21... Qd7 {[%clk 0:01:56.3]} 22. Ne1
{[%clk 0:01:49.9]} 22... Rf8 {[%clk 0:01:56.6]} 23. Rf3 {[%clk 0:01:47.8]} 23...
Ne7 {[%clk 0:01:54.7]} 24. Ng2 {[%clk 0:01:40.7]} 24... f5 {[%clk 0:01:54.2]}
25. Nh4 {[%clk 0:01:39.1]} 25... f4 {[%clk 0:01:51]} 26. Kh1 {[%clk 0:01:37]}
26... g5 {[%clk 0:01:48]} 27. Ng2 {[%clk 0:01:30.6]} 27... Ng6 {[%clk
0:01:45.2]} 28. Rd3 {[%clk 0:01:25.4]} 28... Rf7 {[%clk 0:01:40.9]} 29. Qe2
{[%clk 0:01:08]} 29... g4 {[%clk 0:01:22.7]} 30. Qc2 {[%clk 0:00:46.8]} 30...
Raf8 {[%clk 0:01:22.2]} 31. Rd2 {[%clk 0:00:45.9]} 31... Qe7 {[%clk 0:01:12.2]}
32. Kg1 {[%clk 0:00:44.9]} 32... h5 {[%clk 0:01:12.3]} 33. Rf1 {[%clk
0:00:38.4]} 33... h4 {[%clk 0:01:10.3]} 34. Rdd1 {[%clk 0:00:36.7]} 34... Qg5
{[%clk 0:01:07.2]} 35. Qd2 {[%clk 0:00:34.9]} 35... Qh5 {[%clk 0:01:05.3]} 36.
f3 {[%clk 0:00:20.7]} 36... hxg3 {[%clk 0:01:00.9]} 37. hxg3 {[%clk 0:00:19.7]}
37... fxg3 {[%clk 0:01:00.3]} 38. Ne3 {[%clk 0:00:20.1]} 38... gxf3 {[%clk
0:01:00.4]} 39. Nf5 {[%clk 0:00:19.9]} 39... Rxf5 {[%clk 0:00:55]} 40. exf5
{[%clk 0:00:20.8]} 40... Rxf5 {[%clk 0:00:55.2]} 41. Qc2 {[%clk 0:00:17.4]}
41... f2+ {[%clk 0:00:54.7]} 42. Kg2 {[%clk 0:00:17.1]} 42... Qh2# {[%clk
0:00:54.6]} 0-1

[Event "Early-Titled-Tuesday-Blitz-March-05-2024"]
[Site "Chess.com"]
[Date "2024.03.05"]
[Round "1"]
[White "cristianserban1"]
[Black "Seochesspie"]
[Result "0-1"]
[WhiteElo "2460"]
[BlackElo "2830"]
[TimeControl "180+1"]
[EndTime "8:06:30 PST"]
[Termination "Seochesspie won by resignation"]

1. Nf3 {[%clk 0:03:00.9]} 1... Nf6 {[%clk 0:02:59.9]} 2. b3 {[%clk 0:03:00.8]}
2... g6 {[%clk 0:02:59]} 3. Bb2 {[%clk 0:03:01.2]} 3... Bg7 {[%clk 0:02:59.9]}
4. d4 {[%clk 0:03:00]} 4... O-O {[%clk 0:03:00.3]} 5. e3 {[%clk 0:03:00.4]} 5...
b6 {[%clk 0:02:59.9]} 6. c4 {[%clk 0:02:58.9]} 6... Bb7 {[%clk 0:03:00.1]} 7.
Nc3 {[%clk 0:02:54.4]} 7... e6 {[%clk 0:03:00.2]} 8. Bd3 {[%clk 0:02:53.4]} 8...
d6 {[%clk 0:03:00.3]} 9. O-O {[%clk 0:02:52.8]} 9... Nbd7 {[%clk 0:03:00.6]} 10.
Qc2 {[%clk 0:02:24.1]} 10... c5 {[%clk 0:02:58.4]} 11. dxc5 {[%clk 0:02:17.3]}
11... Nxc5 {[%clk 0:02:56.1]} 12. Be2 {[%clk 0:02:16.6]} 12... Qe7 {[%clk
0:02:55.7]} 13. Rfd1 {[%clk 0:02:15.3]} 13... Rfd8 {[%clk 0:02:54.4]} 14. Nd2
{[%clk 0:02:05.1]} 14... Rac8 {[%clk 0:02:52.5]} 15. Bf3 {[%clk 0:02:05.5]}
15... Bxf3 {[%clk 0:02:46.4]} 16. Nxf3 {[%clk 0:02:05.7]} 16... a6 {[%clk
0:02:46.7]} 17. Qe2 {[%clk 0:02:04.2]} 17... Qb7 {[%clk 0:02:45]} 18. b4 {[%clk
0:01:53.5]} 18... Nce4 {[%clk 0:02:43.6]} 19. Nxe4 {[%clk 0:01:53.8]} 19... Qxe4
{[%clk 0:02:44.2]} 20. Rac1 {[%clk 0:01:53.7]} 20... Qc6 {[%clk 0:02:34]} 21. a3
{[%clk 0:01:28.6]} 21... Qa4 {[%clk 0:02:33.2]} 22. Qc2 {[%clk 0:01:26.7]} 22...
Qxc2 {[%clk 0:02:30.2]} 23. Rxc2 {[%clk 0:01:27.6]} 23... d5 {[%clk 0:02:27]}
24. h3 {[%clk 0:01:20.8]} 24... Ne4 {[%clk 0:02:21.5]} 25. Bxg7 {[%clk
0:01:20.7]} 25... Kxg7 {[%clk 0:02:22.4]} 26. Kf1 {[%clk 0:01:08.1]} 26... Rc7
{[%clk 0:02:06]} 27. Rdc1 {[%clk 0:00:23.8]} 27... Rdc8 {[%clk 0:02:05.4]} 28.
c5 {[%clk 0:00:19.7]} 28... bxc5 {[%clk 0:02:05.2]} 29. bxc5 {[%clk 0:00:20.1]}
29... Rxc5 {[%clk 0:02:02]} 30. Rxc5 {[%clk 0:00:20.5]} 30... Rxc5 {[%clk
0:02:02.7]} 31. Rxc5 {[%clk 0:00:21]} 31... Nxc5 {[%clk 0:02:03.6]} 32. Ke2
{[%clk 0:00:21.5]} 32... Kf6 {[%clk 0:02:03.1]} 33. g4 {[%clk 0:00:15.2]} 33...
h6 {[%clk 0:02:00.7]} 34. h4 {[%clk 0:00:15]} 34... e5 {[%clk 0:02:01.1]} 35.
Nd2 {[%clk 0:00:12.2]} 35... Ke6 {[%clk 0:02:00.9]} 36. f4 {[%clk 0:00:09.4]}
36... f6 {[%clk 0:01:57.5]} 37. Nf3 {[%clk 0:00:07.2]} 37... Ne4 {[%clk
0:01:52.9]} 38. fxe5 {[%clk 0:00:05.8]} 38... fxe5 {[%clk 0:01:52.9]} 39. Ne1
{[%clk 0:00:02.1]} 39... Nf6 {[%clk 0:01:51.8]} 40. Kf3 {[%clk 0:00:02]} 40...
Ne4 {[%clk 0:01:45]} 41. Nc2 {[%clk 0:00:02.6]} 41... Nd2+ {[%clk 0:01:44.1]}
42. Ke2 {[%clk 0:00:03.1]} 42... Nc4 {[%clk 0:01:45]} 43. Kd3 {[%clk 0:00:02.1]}
43... a5 {[%clk 0:01:40.7]} 44. e4 {[%clk 0:00:02.4]} 44... Nb2+ {[%clk
0:01:36.4]} 45. Kc3 {[%clk 0:00:02.4]} 45... Na4+ {[%clk 0:01:36.7]} 46. Kd3
{[%clk 0:00:01.1]} 46... Nc5+ {[%clk 0:01:36.5]} 47. Ke3 {[%clk 0:00:01.7]}
47... Nxe4 {[%clk 0:01:36.4]} 0-1

[Event "Early-Titled-Tuesday-Blitz-March-05-2024"]
[Site "Chess.com"]
[Date "2024.03.05"]
[Round "1"]
[White "PoXerStar"]
[Black "stolencandy13"]
[Result "0-1"]
[WhiteElo "2367"]
[BlackElo "2669"]
[TimeControl "180+1"]
[EndTime "8:06:33 PST"]
[Termination "stolencandy13 won on time"]

1. d4 {[%clk 0:02:53.5]} 1... Nf6 {[%clk 0:02:59.5]} 2. c4 {[%clk 0:02:53.8]}
2... c5 {[%clk 0:02:58.6]} 3. d5 {[%clk 0:02:54]} 3... e6 {[%clk 0:02:58.6]} 4.
Nc3 {[%clk 0:02:54]} 4... exd5 {[%clk 0:02:59.3]} 5. cxd5 {[%clk 0:02:54.9]}
5... d6 {[%clk 0:03:00.2]} 6. Nf3 {[%clk 0:02:55.3]} 6... g6 {[%clk 0:02:59.5]}
7. Bf4 {[%clk 0:02:55.7]} 7... a6 {[%clk 0:02:59.1]} 8. a4 {[%clk 0:02:55.5]}
8... Bg7 {[%clk 0:02:58.6]} 9. h3 {[%clk 0:02:56]} 9... O-O {[%clk 0:02:56.8]}
10. e3 {[%clk 0:02:56.3]} 10... Ne8 {[%clk 0:02:56.9]} 11. Be2 {[%clk
0:02:51.6]} 11... Qe7 {[%clk 0:02:56.5]} 12. O-O {[%clk 0:02:51.1]} 12... Nd7
{[%clk 0:02:56.8]} 13. Bh2 {[%clk 0:02:49.3]} 13... Ne5 {[%clk 0:02:56.6]} 14.
Nd2 {[%clk 0:02:45.8]} 14... f5 {[%clk 0:02:47.4]} 15. Qc2 {[%clk 0:02:35.4]}
15... Bd7 {[%clk 0:02:43.1]} 16. a5 {[%clk 0:02:21.4]} 16... Kh8 {[%clk
0:02:41.8]} 17. f4 {[%clk 0:02:20.2]} 17... Nf7 {[%clk 0:02:41]} 18. e4 {[%clk
0:02:20.7]} 18... Nf6 {[%clk 0:02:23.6]} 19. Bd3 {[%clk 0:01:57.4]} 19... fxe4
{[%clk 0:02:19.4]} 20. Ndxe4 {[%clk 0:01:58.3]} 20... Nxe4 {[%clk 0:02:14.4]}
21. Nxe4 {[%clk 0:01:56.3]} 21... Bf5 {[%clk 0:02:02.4]} 22. Rae1 {[%clk
0:01:47.9]} 22... Rae8 {[%clk 0:01:58.2]} 23. g4 {[%clk 0:01:23.9]} 23... Bxe4
{[%clk 0:01:53]} 24. Bxe4 {[%clk 0:01:14.6]} 24... Qf6 {[%clk 0:01:52.3]} 25. b3
{[%clk 0:01:07.7]} 25... Qd4+ {[%clk 0:01:49]} 26. Kg2 {[%clk 0:01:05.9]} 26...
Re7 {[%clk 0:01:45.8]} 27. Re2 {[%clk 0:00:35.1]} 27... Rfe8 {[%clk 0:01:42.8]}
28. Rfe1 {[%clk 0:00:35.1]} 28... Qc3 {[%clk 0:01:37.2]} 29. Qd3 {[%clk
0:00:02.9]} 29... Bd4 {[%clk 0:00:58.9]} 30. Bg3 {[%clk 0:00:01.9]} 30... Rxe4
{[%clk 0:00:47.7]} 0-1

[Event "Early-Titled-Tuesday-Blitz-March-05-2024"]
[Site "Chess.com"]
[Date "2024.03.05"]
[Round "1"]
[White "FairChess_on_YouTube"]
[Black "guillembaches"]
[Result "1-0"]
[WhiteElo "3105"]
[BlackElo "2523"]
[TimeControl "180+1"]
[EndTime "8:06:34 PST"]
[Termination "FairChess_on_YouTube won on time"]

1. Nf3 {[%clk 0:03:00.9]} 1... d5 {[%clk 0:02:59.9]} 2. e3 {[%clk 0:03:00.4]}
2... Nf6 {[%clk 0:02:59.7]} 3. c4 {[%clk 0:03:00.5]} 3... e6 {[%clk 0:02:59.5]}
4. b3 {[%clk 0:03:00.1]} 4... c5 {[%clk 0:02:58.6]} 5. Bb2 {[%clk 0:02:59.9]}
5... a6 {[%clk 0:02:53.8]} 6. cxd5 {[%clk 0:02:56.7]} 6... Nxd5 {[%clk
0:02:51.9]} 7. Be2 {[%clk 0:02:52.7]} 7... Nc6 {[%clk 0:02:50.8]} 8. O-O {[%clk
0:02:52.5]} 8... Nf6 {[%clk 0:02:50.6]} 9. Nc3 {[%clk 0:02:45.8]} 9... Be7
{[%clk 0:02:50.6]} 10. Qb1 {[%clk 0:02:43]} 10... b5 {[%clk 0:02:44.5]} 11. a4
{[%clk 0:02:30]} 11... b4 {[%clk 0:02:41.7]} 12. Ne4 {[%clk 0:02:29.8]} 12...
Bb7 {[%clk 0:02:35.1]} 13. Bxf6 {[%clk 0:02:28.5]} 13... gxf6 {[%clk 0:02:33.1]}
14. Rc1 {[%clk 0:02:27]} 14... Qd5 {[%clk 0:02:16.4]} 15. Rxc5 {[%clk
0:02:26.1]} 15... Qd7 {[%clk 0:02:01.1]} 16. Qb2 {[%clk 0:02:16.1]} 16... Ne5
{[%clk 0:01:59.5]} 17. Nxe5 {[%clk 0:02:08.3]} 17... fxe5 {[%clk 0:01:59.3]} 18.
Qxe5 {[%clk 0:02:08.9]} 18... Rg8 {[%clk 0:01:57.5]} 19. Rc7 {[%clk 0:01:49.5]}
19... Qd5 {[%clk 0:01:43.8]} 20. Qxd5 {[%clk 0:01:36.4]} 20... Bxd5 {[%clk
0:01:43.9]} 21. Bf3 {[%clk 0:01:36.9]} 21... f5 {[%clk 0:01:32.7]} 22. Ng3
{[%clk 0:01:33.9]} 22... Bxf3 {[%clk 0:01:22.7]} 23. gxf3 {[%clk 0:01:34.8]}
23... h5 {[%clk 0:01:03.1]} 24. Kf1 {[%clk 0:01:31.7]} 24... h4 {[%clk
0:01:00.2]} 25. Ne2 {[%clk 0:01:29.9]} 25... Bd6 {[%clk 0:00:56.9]} 26. Rh7
{[%clk 0:01:28.8]} 26... Bxh2 {[%clk 0:00:45.5]} 27. Rxh4 {[%clk 0:01:28.3]}
27... Be5 {[%clk 0:00:42.2]} 28. Rc1 {[%clk 0:01:26.8]} 28... Kd7 {[%clk
0:00:39.8]} 29. d4 {[%clk 0:01:11.2]} 29... Bf6 {[%clk 0:00:34.9]} 30. Rh7+
{[%clk 0:01:11.3]} 30... Rg7 {[%clk 0:00:34.2]} 31. Rxg7+ {[%clk 0:01:10.7]}
31... Bxg7 {[%clk 0:00:35.1]} 32. Nf4 {[%clk 0:01:10.5]} 32... Bf8 {[%clk
0:00:25.6]} 33. Nd3 {[%clk 0:01:03.2]} 33... Bd6 {[%clk 0:00:25.1]} 34. Nc5+
{[%clk 0:01:01.1]} 34... Ke7 {[%clk 0:00:24.5]} 35. Ke2 {[%clk 0:01:00.2]} 35...
a5 {[%clk 0:00:21.5]} 36. Nb7 {[%clk 0:01:00.4]} 1-0

[Event "Early-Titled-Tuesday-Blitz-March-05-2024"]
[Site "Chess.com"]
[Date "2024.03.05"]
[Round "1"]
[White "GeorgiosSouleidis"]
[Black "Cheer_Down"]
[Result "1-0"]
[WhiteElo "2705"]
[BlackElo "2405"]
[TimeControl "180+1"]
[EndTime "8:06:35 PST"]
[Termination "GeorgiosSouleidis won by checkmate"]

1. e4 {[%clk 0:03:00.9]} 1... e5 {[%clk 0:02:58.7]} 2. Nc3 {[%clk 0:03:00.4]}
2... Nf6 {[%clk 0:02:58.2]} 3. d4 {[%clk 0:02:59.9]} 3... exd4 {[%clk
0:02:50.4]} 4. Qxd4 {[%clk 0:03:00.8]} 4... Nc6 {[%clk 0:02:49.1]} 5. Qd3 {[%clk
0:03:01.1]} 5... Bb4 {[%clk 0:02:28.8]} 6. Bd2 {[%clk 0:02:56.1]} 6... O-O
{[%clk 0:02:20.5]} 7. O-O-O {[%clk 0:02:55.5]} 7... a5 {[%clk 0:02:13.4]} 8. Qg3
{[%clk 0:02:47.6]} 8... Re8 {[%clk 0:02:08.4]} 9. f3 {[%clk 0:02:36.2]} 9... d6
{[%clk 0:02:05.5]} 10. h4 {[%clk 0:02:32.9]} 10... Be6 {[%clk 0:02:02.5]} 11. a3
{[%clk 0:02:28.1]} 11... Bc5 {[%clk 0:01:58]} 12. h5 {[%clk 0:02:28]} 12... Ne5
{[%clk 0:01:47.6]} 13. h6 {[%clk 0:02:27.1]} 13... g6 {[%clk 0:01:47.1]} 14. Bg5
{[%clk 0:02:26.7]} 14... Ned7 {[%clk 0:01:47.3]} 15. Qh4 {[%clk 0:02:20.9]}
15... c6 {[%clk 0:01:36.8]} 16. e5 {[%clk 0:02:07.7]} 16... dxe5 {[%clk
0:01:34.8]} 17. Ne4 {[%clk 0:02:07.9]} 17... Be7 {[%clk 0:01:35]} 18. Rxd7
{[%clk 0:01:55.3]} 18... Nxd7 {[%clk 0:01:32.4]} 19. Ne2 {[%clk 0:01:41]} 19...
f6 {[%clk 0:01:06.9]} 20. Bd2 {[%clk 0:01:31.9]} 20... b5 {[%clk 0:01:07]} 21.
Kb1 {[%clk 0:01:13.4]} 21... b4 {[%clk 0:01:06.7]} 22. a4 {[%clk 0:01:12.8]}
22... b3 {[%clk 0:01:07.2]} 23. cxb3 {[%clk 0:01:03.1]} 23... Nc5 {[%clk
0:01:02.9]} 24. Nxc5 {[%clk 0:00:51.8]} 24... Bxc5 {[%clk 0:01:02.9]} 25. Bc3
{[%clk 0:00:45.2]} 25... Qd1+ {[%clk 0:00:52.1]} 26. Nc1 {[%clk 0:00:41.6]}
26... Bf5+ {[%clk 0:00:35.1]} 27. Ka2 {[%clk 0:00:36.8]} 27... Qd6 {[%clk
0:00:25.7]} 28. Bc4+ {[%clk 0:00:35.7]} 28... Be6 {[%clk 0:00:25.3]} 29. Qxf6
{[%clk 0:00:33.6]} 29... Ra7 {[%clk 0:00:23.4]} 30. Bxe5 {[%clk 0:00:31.3]}
30... Qe7 {[%clk 0:00:22]} 31. Qh8+ {[%clk 0:00:25]} 31... Kf7 {[%clk
0:00:22.2]} 32. Qg7# {[%clk 0:00:25.9]} 1-0